bitfinex/quotes_SOLUSD_20241024
["timestamp","ask_amount","ask_price","bid_price","bid_amount"]
[1729778430661,0.25098,175.78,175.73,45.14264262]
[1729778430844,0.12549,175.77,175.73,45.14264262]
[1729778431055,0.12549,175.75,175.7,45.14264262]
[1729778431257,0.25098,175.74,175.69,60.73004262]
[1729778431767,0.12549,175.71,175.69,15.5874]
[1729778432186,45.26813262,175.71,175.66,45.14264262]
[1729778432356,45.39362262,175.67,175.64,16.3263]
[1729778432553,45.39362262,175.67,175.59,6.0425]
[1729778432554,0.25098,175.65,175.59,22.3688]
[1729778432776,0.25098,175.65,175.6,45.14264262]
[1729778433269,0.12549,175.64,175.6,45.14264262]
[1729778433581,45.14264262,175.61,175.56,45.14264262]
[1729778433779,45.14264262,175.61,175.54,11.94928073]
[1729778433780,45.26813262,175.58,175.54,11.94928073]
[1729778433963,0.25098,175.57,175.54,6.0425]
[1729778434160,0.12549,175.56,175.52,45.14264262]
[1729778434361,0.37647,175.54,175.49,45.14264262]
[1729778434562,0.37647,175.54,175.52,45.14264262]
[1729778434563,0.12549,175.54,175.52,45.14264262]
[1729778434772,45.14264262,175.58,175.53,45.14264262]
[1729778434773,0.25098,175.58,175.53,45.14264262]
[1729778434971,0.25098,175.58,175.55,45.14264262]
[1729778435360,0.25098,175.58,175.54,45.14264262]
[1729778435569,0.25098,175.58,175.53,45.14264262]
[1729778435570,45.39362262,175.58,175.53,45.14264262]
[1729778435775,45.39362262,175.58,175.52,45.14264262]
[1729778435986,0.12549,175.55,175.5,45.14264262]
[1729778436288,45.51911262,175.55,175.49,45.14264262]
[1729778436455,0.37647,175.55,175.48,9.2825]
[1729778436657,45.14264262,175.54,175.49,45.14264262]
[1729778436856,0.12549,175.52,175.49,45.14264262]
[1729778437083,0.12549,175.52,175.48,54.42514262]
[1729778437266,0.12549,175.52,175.48,9.2825]
[1729778437584,0.12549,175.52,175.48,6.0425]
[1729778438157,45.26813262,175.52,175.47,61.46894262]
[1729778438367,0.12549,175.5,175.47,16.3263]
[1729778438572,0.25098,175.49,175.47,16.3263]
[1729778438781,0.25098,175.49,175.46,0.6167704]
[1729778439056,0.12549,175.52,175.47,45.14264262]
[1729778439259,0.25098,175.52,175.47,45.14264262]
[1729778439484,0.12549,175.51,175.46,45.75941302]
[1729778439689,0.25098,175.5,175.46,0.6167704]
[1729778439887,0.25098,175.5,175.46,45.75941302]
[1729778440188,45.14264262,175.54,175.48,45.14264262]
[1729778440360,45.14264262,175.56,175.5,45.14264262]
[1729778440557,45.14264262,175.59,175.54,45.14264262]
[1729778440758,45.14264262,175.61,175.55,45.14264262]
[1729778440957,45.14264262,175.62,175.57,45.14264262]
[1729778441387,0.12549,175.61,175.57,45.14264262]
[1729778441692,45.14264262,175.66,175.6,45.14264262]
[1729778441864,45.14264262,175.67,175.61,45.14264262]
[1729778442380,45.14264262,175.7,175.64,45.14264262]
[1729778442584,6.4559,175.75,175.65,45.14264262]
[1729778442585,45.14264262,175.71,175.65,45.14264262]
[1729778442791,45.14264262,175.74,175.69,45.14264262]
[1729778443082,45.14264262,175.75,175.69,45.14264262]
[1729778443384,0.12549,175.74,175.69,45.14264262]
[1729778443588,45.14264262,175.77,175.71,45.14264262]
[1729778443777,0.12549,175.75,175.71,45.14264262]
[1729778444576,45.14264262,175.79,175.73,45.14264262]
[1729778444780,45.14264262,175.8,175.74,45.14264262]
[1729778444980,0.12549,175.79,175.74,45.14264262]
[1729778445157,5.6876,175.82,175.75,45.14264262]
[1729778445365,45.14264262,175.81,175.75,45.14264262]
[1729778445959,45.14264262,175.83,175.77,45.14264262]
[1729778446692,0.12549,175.82,175.77,45.14264262]
[1729778447331,45.14264262,175.83,175.77,45.14264262]
[1729778447519,28.25702131,175.88,175.81,45.14264262]
[1729778447705,0.12549,175.85,175.8,45.14264262]
[1729778447905,0.12549,175.85,175.81,45.14264262]
[1729778448106,0.12549,175.85,175.82,45.14264262]
[1729778448411,45.14264262,175.9,175.84,45.14264262]
[1729778448721,0.12549,175.89,175.84,45.14264262]
[1729778448928,45.14264262,175.9,175.84,45.14264262]
[1729778449108,45.14264262,175.92,175.87,45.14264262]
[1729778449305,45.14264262,175.94,175.88,45.14264262]
[1729778449495,45.14264262,175.95,175.89,45.14264262]
[1729778449699,45.14264262,175.96,175.9,45.14264262]
[1729778449921,45.14264262,175.95,175.89,45.14264262]
[1729778450738,45.14264262,175.9,175.84,45.14264262]
[1729778450897,45.14264262,175.88,175.82,45.14264262]
[1729778451101,0.12549,175.85,175.81,45.14264262]
[1729778451309,0.12549,175.83,175.8,45.14264262]
[1729778451494,0.12549,175.84,175.8,45.14264262]
[1729778452202,0.12549,175.83,175.78,60.41654262]
[1729778453024,0.25098,175.84,175.8,45.14264262]
[1729778453209,0.25098,175.84,175.81,45.14264262]
[1729778453407,0.25098,175.87,175.82,45.14264262]
[1729778453614,45.39362262,175.83,175.78,15.2739]
[1729778453817,0.25098,175.83,175.79,45.14264262]
[1729778454223,0.37647,175.84,175.81,22.57132131]
[1729778454407,0.12549,175.84,175.81,22.57132131]
[1729778454603,0.12549,175.82,175.78,15.2739]
[1729778455115,0.12549,175.8,175.78,15.2739]
[1729778455535,45.39362262,175.81,175.8,1.20994]
[1729778455907,0.25098,175.81,175.8,1.20994]
[1729778456315,45.39362262,175.81,175.8,1.20994]
[1729778457412,45.51911262,175.81,175.8,1.20994]
[1729778457941,51.20701262,175.81,175.8,1.20994]
[1729778458525,45.51911262,175.81,175.8,1.20994]
[1729778459703,74.98389662,175.81,175.8,0.95904]
[1729778459912,74.98389662,175.81,175.59,6.0512]
[1729778459913,5.94018,175.77,175.59,6.0512]
[1729778460110,0.25098,175.69,175.63,45.14264262]
[1729778460516,0.12549,175.69,175.59,6.1512]
[1729778460733,0.12549,175.69,175.59,6.0512]
[1729778461023,45.26813262,175.65,175.59,28.62252131]
[1729778461204,45.39362262,175.64,175.59,6.0512]
[1729778461407,0.25098,175.64,175.59,28.62252131]
[1729778461720,0.12549,175.62,175.59,6.0512]
[1729778461927,0.25098,175.61,175.59,6.0512]
[1729778462315,0.25098,175.61,175.58,15.4949]
[1729778462316,0.12549,175.59,175.55,45.14264262]
[1729778462521,0.12549,175.57,175.54,6.3741]
[1729778462741,0.12549,175.55,175.52,16.1194]
[1729778462944,0.12549,175.57,175.52,16.1194]
[1729778463127,5.6931,175.65,175.52,16.1194]
[1729778463329,45.51911262,175.61,175.55,45.14264262]
[1729778463540,0.12549,175.59,175.55,45.14264262]
[1729778464224,0.12549,175.59,175.57,45.14264262]
[1729778464420,0.12549,175.59,175.58,45.14264262]
[1729778464621,45.14264262,175.74,175.61,6.1247]
[1729778464826,0.1,175.75,175.64,45.14264262]
[1729778465052,0.1,175.74,175.61,6.1247]
[1729778465349,0.12549,175.68,175.63,22.57132131]
[1729778465556,22.57132131,175.72,175.66,22.57132131]
[1729778465844,0.12549,175.71,175.66,22.57132131]
[1729778466038,0.12549,175.71,175.66,45.14264262]
[1729778466240,0.12549,175.71,175.66,59.35460945]
[1729778466420,73.56657628,175.74,175.68,73.56657628]
[1729778466624,73.56657628,175.72,175.66,73.56657628]
[1729778466945,0.12549,175.71,175.68,73.56657628]
[1729778467425,0.12549,175.72,175.68,73.56657628]
[1729778467836,0.12549,175.73,175.68,73.56657628]
[1729778468022,0.12549,175.73,175.7,73.56657628]
[1729778468224,0.12549,175.73,175.72,73.56657628]
[1729778468428,0.12549,175.74,175.72,73.56657628]
[1729778468625,73.56657628,175.8,175.73,73.56657628]
[1729778468839,73.56657628,175.76,175.7,73.56657628]
[1729778469039,0.22549,175.77,175.68,36.78328814]
[1729778469232,0.22549,175.74,175.64,15.2649]
[1729778469749,0.12549,175.71,175.66,36.78328814]
[1729778469920,0.12549,175.7,175.66,36.78328814]
[1729778470126,0.25098,175.69,175.66,73.56657628]
[1729778470440,0.12549,175.68,175.66,73.56657628]
[1729778470638,0.25098,175.67,175.66,73.56657628]
[1729778470853,0.37647,175.67,175.65,73.56657628]
[1729778471031,0.12549,175.65,175.64,88.83147628]
[1729778471350,0.12549,175.64,175.62,73.56657628]
[1729778471645,0.12549,175.64,175.61,73.56657628]
[1729778471853,0.12549,175.64,175.63,73.56657628]
[1729778472050,0.12549,175.65,175.63,73.56657628]
[1729778472226,0.12549,175.65,175.64,73.56657628]
[1729778472734,0.12549,175.68,175.64,73.56657628]
[1729778472933,0.12549,175.68,175.67,73.56657628]
[1729778474651,0.12549,175.68,175.66,73.56657628]
[1729778474957,0.12549,175.68,175.61,73.56657628]
[1729778474958,0.12549,175.63,175.61,73.56657628]
[1729778475154,0.25098,175.62,175.59,73.56657628]
[1729778475454,0.12549,175.62,175.58,15.3235]
[1729778475642,0.12549,175.68,175.58,15.3235]
[1729778475846,0.12549,175.67,175.64,36.78328814]
[1729778476047,0.12549,175.67,175.66,36.78328814]
[1729778476432,0.12549,175.67,175.66,73.56657628]
[1729778477433,73.56657628,175.74,175.66,73.56657628]
[1729778477755,79.25687628,175.74,175.68,73.56657628]
[1729778477934,73.56657628,175.75,175.69,73.56657628]
[1729778478134,73.56657628,175.75,175.7,73.56657628]
[1729778478364,0.12549,175.72,175.68,73.56657628]
[1729778478958,73.56657628,175.7,175.65,73.56657628]
[1729778479259,24.153354,175.69,175.64,73.56657628]
[1729778479838,0.12549,175.65,175.61,73.56657628]
[1729778480052,0.12549,175.65,175.58,15.3235]
[1729778480053,73.94304628,175.65,175.6,73.56657628]
[1729778480231,73.94304628,175.65,175.58,15.3235]
[1729778480232,0.37647,175.65,175.61,73.56657628]
[1729778480531,0.37647,175.65,175.62,73.56657628]
[1729778480733,73.56657628,175.74,175.64,73.56657628]
[1729778480940,11.7236,175.8,175.73,36.78328814]
[1729778481152,11.7236,175.8,175.73,73.56657628]
[1729778481153,0.1,175.78,175.73,73.56657628]
[1729778481332,85.29017628,175.8,175.74,73.56657628]
[1729778481735,0.12549,175.79,175.74,73.56657628]
[1729778482138,5.81409,175.79,175.74,73.56657628]
[1729778482450,14.2182,175.84,175.66,6.4666]
[1729778482451,0.1,175.85,175.78,73.56657628]
[1729778482648,73.66657628,175.85,175.79,73.56657628]
[1729778482837,73.56657628,175.87,175.82,73.56657628]
[1729778483034,5.6857,175.88,175.72,0.1]
[1729778483262,5.6857,175.88,175.83,73.56657628]
[1729778483433,0.12549,175.87,175.83,73.56657628]
[1729778483637,0.12549,175.87,175.82,73.56657628]
[1729778483839,73.56657628,175.87,175.81,73.56657628]
[1729778484061,79.25267628,175.87,175.81,73.56657628]
[1729778484553,24.153354,175.84,175.8,73.56657628]
[1729778484756,0.12549,175.84,175.82,73.56657628]
[1729778484955,0.12549,175.84,175.83,73.56657628]
[1729778485262,73.56657628,175.85,175.77,6.6032]
[1729778485448,0.12549,175.82,175.77,36.78328814]
[1729778485834,0.12549,175.82,175.76,36.78328814]
[1729778485835,36.90877814,175.82,175.76,36.78328814]
[1729778486151,42.59647814,175.82,175.76,36.78328814]
[1729778486348,42.59647814,175.82,175.71,6.0269]
[1729778486349,97.71993028,175.8,175.75,73.56657628]
[1729778486865,0.12549,175.76,175.73,73.56657628]
[1729778487033,0.12549,175.76,175.74,73.56657628]
[1729778487438,0.12549,175.76,175.71,6.0269]
[1729778487439,0.12549,175.76,175.75,73.56657628]
[1729778489169,73.56657628,175.85,175.75,73.56657628]
[1729778489477,0.12549,175.84,175.79,73.56657628]
[1729778489637,0.12549,175.8,175.75,73.56657628]
[1729778489838,73.69206628,175.8,175.75,73.56657628]
[1729778490147,0.12549,175.8,175.75,73.56657628]
[1729778490344,24.027864,175.82,175.78,73.56657628]
[1729778490543,24.027864,175.81,175.76,73.56657628]
[1729778490753,97.59444028,175.81,175.76,73.56657628]
[1729778491264,0.12549,175.78,175.76,73.56657628]
[1729778491466,0.12549,175.76,175.74,73.56657628]
[1729778491764,0.12549,175.76,175.72,73.56657628]
[1729778492184,0.12549,175.76,175.74,73.56657628]
[1729778492350,0.1,175.84,175.75,36.78328814]
[1729778492351,0.25098,175.8,175.75,36.78328814]
[1729778492554,0.12549,175.83,175.79,73.56657628]
[1729778492774,0.12549,175.81,175.76,73.56657628]
[1729778492953,0.12549,175.81,175.7,73.56657628]
[1729778492954,0.12549,175.79,175.75,73.56657628]
[1729778493374,73.69206628,175.79,175.73,73.56657628]
[1729778493770,0.37647,175.77,175.73,73.56657628]
[1729778493971,0.37647,175.77,175.74,73.56657628]
[1729778494279,0.37647,175.77,175.75,73.56657628]
[1729778494660,0.37647,175.77,175.76,73.56657628]
[1729778495173,0.37647,175.77,175.74,73.56657628]
[1729778495385,0.37647,175.77,175.73,73.56657628]
[1729778495876,0.37647,175.77,175.75,73.56657628]
[1729778496066,0.37647,175.77,175.74,73.56657628]
[1729778496264,0.12549,175.75,175.73,73.56657628]
[1729778496580,0.37647,175.75,175.74,73.56657628]
[1729778496778,20.0,175.82,175.74,73.56657628]
[1729778496958,73.56657628,175.79,175.74,73.56657628]
[1729778497159,0.12549,175.78,175.73,73.56657628]
[1729778497664,73.56657628,175.8,175.74,73.56657628]
[1729778497867,73.56657628,175.81,175.76,73.56657628]
[1729778498069,73.56657628,175.79,175.73,73.56657628]
[1729778498265,0.12549,175.77,175.75,45.23655148]
[1729778498881,0.12549,175.78,175.75,45.23655148]
[1729778499056,0.25098,175.78,175.74,45.23655148]
[1729778499262,0.12549,175.73,175.64,15.6941]
[1729778499460,24.153354,175.71,175.68,45.23655148]
[1729778499782,0.37647,175.71,175.7,45.23655148]
[1729778500291,0.37647,175.71,175.69,45.23655148]
[1729778500582,0.37647,175.71,175.7,45.23655148]
[1729778501587,0.37647,175.71,175.67,45.23655148]
[1729778501790,51.30432148,175.71,175.65,45.23655148]
[1729778502083,0.37647,175.69,175.64,60.93065148]
[1729778502457,0.37647,175.67,175.63,51.69575148]
[1729778502653,0.37647,175.67,175.64,45.23655148]
[1729778502859,0.37647,175.67,175.63,51.69575148]
[1729778503078,0.37647,175.67,175.64,45.23655148]
[1729778503389,0.37647,175.67,175.63,45.23655148]
[1729778503559,45.23655148,175.75,175.66,45.23655148]
[1729778503891,0.12549,175.74,175.69,45.23655148]
[1729778504382,5.81579,175.74,175.69,45.23655148]
[1729778504878,50.92645148,175.75,175.69,45.23655148]
[1729778505077,0.12549,175.74,175.69,45.23655148]
[1729778505391,0.12549,175.72,175.67,45.23655148]
[1729778505685,0.12549,175.72,175.69,45.23655148]
[1729778505879,0.12549,175.72,175.68,45.23655148]
[1729778506078,0.25098,175.72,175.68,45.23655148]
[1729778506265,5.81759,175.69,175.64,45.23655148]
[1729778506467,0.12549,175.67,175.63,45.23655148]
[1729778506984,0.12549,175.67,175.66,45.23655148]
[1729778507287,0.12549,175.67,175.64,45.23655148]
[1729778507677,45.36204148,175.67,175.62,45.23655148]
[1729778507860,0.12549,175.65,175.62,45.23655148]
[1729778508062,0.12549,175.65,175.61,45.23655148]
[1729778508285,0.12549,175.65,175.6,45.23655148]
[1729778508577,45.36204148,175.63,175.59,16.1533]
[1729778508783,0.12549,175.61,175.56,45.23655148]
[1729778509162,0.12549,175.61,175.58,45.23655148]
[1729778509385,0.12549,175.61,175.57,45.23655148]
[1729778509682,0.12549,175.61,175.58,45.23655148]
[1729778509885,0.12549,175.61,175.57,45.23655148]
[1729778510876,22.61827574,175.58,175.54,44.36897574]
[1729778511084,0.37647,175.57,175.54,45.23655148]
[1729778511278,0.37647,175.57,175.5,6.2631]
[1729778511279,0.37647,175.57,175.55,45.23655148]
[1729778511793,44.153354,175.55,175.46,0.6167704]
[1729778511975,24.027864,175.53,175.49,45.23655148]
[1729778512176,0.12549,175.52,175.49,45.23655148]
[1729778512380,0.12549,175.52,175.51,45.23655148]
[1729778512968,0.25098,175.53,175.51,45.23655148]
[1729778513165,45.23655148,175.6,175.52,45.23655148]
[1729778513381,24.027864,175.61,175.56,45.23655148]
[1729778513589,69.26441548,175.61,175.55,45.23655148]
[1729778513792,0.12549,175.6,175.55,45.23655148]
[1729778514277,45.36204148,175.59,175.53,45.23655148]
[1729778514492,45.36204148,175.59,175.54,45.23655148]
[1729778514876,0.12549,175.57,175.54,45.23655148]
[1729778515403,0.12549,175.57,175.56,45.23655148]
[1729778515897,0.12549,175.57,175.53,61.07725148]
[1729778516488,0.12549,175.55,175.5,45.23655148]
[1729778516696,0.12549,175.54,175.5,45.23655148]
[1729778517008,0.12549,175.53,175.49,45.23655148]
[1729778517997,0.25098,175.5,175.48,45.23655148]
[1729778518319,0.12549,175.47,175.46,0.6167704]
[1729778521685,45.36204148,175.47,175.46,0.6167704]
[1729778521888,69.38990548,175.47,175.46,0.6167704]
[1729778522097,75.08880548,175.47,175.46,0.6167704]
[1729778522677,69.38990548,175.47,175.46,0.6167704]
[1729778523078,0.12549,175.47,175.46,0.6167704]
[1729778523282,45.23655148,175.52,175.46,45.85332188]
[1729778523481,45.23655148,175.55,175.49,45.23655148]
[1729778523894,0.12549,175.52,175.47,61.86835148]
[1729778524299,22.61827574,175.55,175.51,22.61827574]
[1729778524482,50.93195148,175.58,175.52,45.23655148]
[1729778524683,45.23655148,175.57,175.52,45.23655148]
[1729778524909,45.23655148,175.59,175.53,45.23655148]
[1729778525107,5.6951,175.59,175.54,45.23655148]
[1729778525281,0.12549,175.59,175.54,45.23655148]
[1729778525483,6.7429,175.62,175.56,45.23655148]
[1729778525484,50.93085148,175.62,175.56,45.23655148]
[1729778525679,45.23655148,175.63,175.58,45.23655148]
[1729778525912,0.1,175.67,175.59,45.23655148]
[1729778525913,45.23655148,175.65,175.59,45.23655148]
[1729778526115,45.23655148,175.66,175.6,45.23655148]
[1729778526289,5.6927,175.67,175.62,45.23655148]
[1729778526491,0.12549,175.66,175.62,45.23655148]
[1729778526804,50.92925148,175.67,175.62,45.23655148]
[1729778527020,0.1,175.7,175.63,45.23655148]
[1729778527021,45.23655148,175.69,175.63,45.23655148]
[1729778527212,5.6911,175.72,175.66,45.23655148]
[1729778527390,45.23655148,175.73,175.67,45.23655148]
[1729778527593,45.23655148,175.72,175.66,45.23655148]
[1729778527897,45.23655148,175.75,175.69,45.23655148]
[1729778528100,45.23655148,175.74,175.68,45.23655148]
[1729778528414,0.12549,175.73,175.68,45.23655148]
[1729778528600,50.92685148,175.74,175.68,45.23655148]
[1729778529111,45.23655148,175.71,175.66,45.23655148]
[1729778529295,0.12549,175.69,175.6,22.61827574]
[1729778529489,0.12549,175.67,175.64,45.23655148]
[1729778530507,0.12549,175.67,175.62,45.23655148]
[1729778530890,45.36204148,175.67,175.62,45.23655148]
[1729778531085,24.027864,175.66,175.62,22.61827574]
[1729778531287,45.23655148,175.64,175.58,60.90195148]
[1729778531506,24.027864,175.63,175.59,45.23655148]
[1729778531783,0.25098,175.63,175.59,45.23655148]
[1729778532008,0.25098,175.63,175.58,60.90195148]
[1729778532411,0.25098,175.61,175.58,15.6654]
[1729778532721,24.027864,175.61,175.58,15.6654]
[1729778532917,0.25098,175.58,175.54,45.23655148]
[1729778533106,24.027864,175.58,175.54,45.23655148]
[1729778533333,24.027864,175.58,175.53,45.23655148]
[1729778533494,0.25098,175.58,175.54,45.23655148]
[1729778534318,0.25098,175.59,175.55,45.23655148]
[1729778534811,0.25098,175.59,175.56,45.23655148]
[1729778535111,0.25098,175.59,175.55,45.23655148]
[1729778535423,0.25098,175.59,175.52,15.5425]
[1729778535424,0.25098,175.55,175.52,15.5425]
[1729778535594,45.48753148,175.55,175.52,15.5425]
[1729778535796,0.25098,175.55,175.52,15.5425]
[1729778536006,0.25098,175.53,175.49,45.23655148]
[1729778536213,0.25098,175.53,175.48,45.23655148]
[1729778536608,0.25098,175.53,175.52,45.23655148]
[1729778537709,45.23655148,175.61,175.52,45.23655148]
[1729778537917,23.902374,175.6,175.55,45.23655148]
[1729778538114,23.902374,175.6,175.56,45.23655148]
[1729778538435,0.12549,175.57,175.52,45.23655148]
[1729778538599,22.61827574,175.55,175.5,22.61827574]
[1729778538799,0.12549,175.53,175.51,45.23655148]
[1729778539002,0.12549,175.53,175.52,22.61827574]
[1729778539217,0.12549,175.53,175.47,15.8692]
[1729778539601,0.12549,175.52,175.46,0.6167704]
[1729778539808,0.12549,175.49,175.46,0.6167704]
[1729778540024,0.25098,175.48,175.46,0.6167704]
[1729778540332,0.37647,175.47,175.46,0.6167704]
[1729778540529,24.153354,175.47,175.46,0.6167704]
[1729778541008,0.37647,175.47,175.46,0.6167704]
[1729778541412,0.2,175.55,175.46,0.6167704]
[1729778541413,0.12549,175.53,175.46,45.85332188]
[1729778541614,5.695,175.59,175.46,0.6167704]
[1729778541929,0.1,175.61,175.46,0.6167704]
[1729778541930,5.7947,175.61,175.46,0.6167704]
[1729778542309,0.22549,175.6,175.46,0.6167704]
[1729778542625,5.82049,175.59,175.46,0.6167704]
[1729778542929,0.12549,175.54,175.5,45.23655148]
[1729778543121,0.12549,175.54,175.49,45.23655148]
[1729778543929,0.12549,175.54,175.5,45.23655148]
[1729778544118,0.12549,175.54,175.52,45.23655148]
[1729778544303,0.12549,175.54,175.46,0.6167704]
[1729778544304,0.12549,175.55,175.53,45.23655148]
[1729778544503,5.6953,175.59,175.54,45.23655148]
[1729778544715,0.12549,175.58,175.54,22.61827574]
[1729778544936,0.12549,175.58,175.51,45.23655148]
[1729778544937,0.12549,175.56,175.51,45.23655148]
[1729778545235,0.12549,175.55,175.51,45.23655148]
[1729778545546,24.153354,175.55,175.5,45.23655148]
[1729778545838,24.153354,175.55,175.51,45.23655148]
[1729778546540,24.153354,175.55,175.51,22.61827574]
[1729778546715,24.153354,175.55,175.5,45.23655148]
[1729778547235,69.38990548,175.55,175.5,45.23655148]
[1729778547734,0.12549,175.51,175.49,45.23655148]
[1729778548514,0.12549,175.51,175.48,45.23655148]
[1729778548710,0.12549,175.51,175.49,45.23655148]
[1729778548916,0.12549,175.51,175.5,45.23655148]
[1729778550019,0.12549,175.51,175.48,45.23655148]
[1729778551522,0.12549,175.51,175.5,45.23655148]
[1729778551720,0.25098,175.52,175.5,45.23655148]
[1729778551941,0.25098,175.52,175.51,45.23655148]
[1729778552156,0.12549,175.52,175.51,45.23655148]
[1729778552676,5.6934,175.64,175.53,20.0]
[1729778552836,45.23655148,175.65,175.6,45.23655148]
[1729778552837,5.6931,175.65,175.6,45.23655148]
[1729778553259,45.23655148,175.66,175.53,20.0]
[1729778553260,45.23655148,175.68,175.62,45.23655148]
[1729778553463,45.23655148,175.69,175.63,45.23655148]
[1729778553669,0.12549,175.68,175.63,45.23655148]
[1729778553855,5.6915,175.7,175.65,45.23655148]
[1729778554063,50.92775148,175.71,175.65,45.23655148]
[1729778554238,50.92775148,175.71,175.64,45.23655148]
[1729778554239,45.36204148,175.7,175.64,45.23655148]
[1729778554945,5.6915,175.7,175.65,45.23655148]
[1729778555447,5.6915,175.7,175.61,6.2818]
[1729778555448,0.12549,175.69,175.66,45.23655148]
[1729778556266,24.153354,175.69,175.66,45.23655148]
[1729778556964,0.37647,175.69,175.66,45.23655148]
[1729778557140,0.37647,175.69,175.61,6.2818]
[1729778557141,45.23655148,175.74,175.68,45.23655148]
[1729778557340,45.23655148,175.78,175.72,45.23655148]
[1729778557541,22.61827574,175.77,175.72,22.61827574]
[1729778557741,50.92515148,175.79,175.73,45.23655148]
[1729778558155,45.23655148,175.76,175.63,15.1986]
[1729778558372,0.12549,175.74,175.69,45.23655148]
[1729778558540,0.12549,175.72,175.68,45.23655148]
[1729778558939,0.37647,175.72,175.68,45.23655148]
[1729778559651,51.30402148,175.72,175.67,45.23655148]
[1729778559851,0.37647,175.7,175.66,45.23655148]
[1729778560371,0.37647,175.7,175.65,45.23655148]
[1729778560567,45.61302148,175.7,175.65,45.23655148]
[1729778560785,45.61302148,175.7,175.64,45.23655148]
[1729778560951,45.61302148,175.7,175.65,45.23655148]
[1729778561266,23.776884,175.69,175.65,45.23655148]
[1729778561465,0.12549,175.67,175.65,45.23655148]
[1729778562268,45.48753148,175.66,175.63,15.1986]
[1729778562474,45.36204148,175.64,175.59,45.23655148]
[1729778562685,0.25098,175.63,175.59,45.23655148]
[1729778562980,0.12549,175.62,175.58,15.0649]
[1729778563150,45.36204148,175.62,175.58,15.0649]
[1729778563353,45.23655148,175.61,175.58,15.0649]
[1729778563575,45.36204148,175.6,175.56,6.0426]
[1729778563869,45.23655148,175.58,175.53,61.77575148]
[1729778564072,45.23655148,175.59,175.53,61.77575148]
[1729778564370,23.776884,175.59,175.54,45.23655148]
[1729778564554,69.01343548,175.59,175.53,61.77575148]
[1729778564744,74.70853548,175.59,175.53,61.77575148]
[1729778564949,0.25098,175.58,175.55,45.23655148]
[1729778565149,0.25098,175.58,175.54,45.23655148]
[1729778565671,0.12549,175.59,175.55,45.23655148]
[1729778565863,0.25098,175.59,175.54,45.23655148]
[1729778566052,69.26441548,175.59,175.53,61.77575148]
[1729778567482,45.23655148,175.58,175.53,61.77575148]
[1729778567773,0.25098,175.57,175.53,61.77575148]
[1729778568172,0.25098,175.58,175.54,45.23655148]
[1729778568983,0.25098,175.58,175.53,61.77575148]
[1729778569553,0.25098,175.58,175.54,45.23655148]
[1729778570077,69.26441548,175.56,175.5,51.61515148]
[1729778570259,45.23655148,175.55,175.5,51.61515148]
[1729778570456,0.25098,175.54,175.5,51.61515148]
[1729778570657,0.25098,175.54,175.5,6.3786]
[1729778570960,0.25098,175.54,175.5,45.23655148]
[1729778571171,0.25098,175.55,175.5,45.23655148]
[1729778571377,0.12549,175.53,175.5,45.23655148]
[1729778571559,0.25098,175.55,175.5,45.23655148]
[1729778574675,5.6948,175.6,175.55,45.23655148]
[1729778574872,19.9972,175.66,175.56,45.23655148]
[1729778574873,45.23655148,175.62,175.56,45.23655148]
[1729778575180,50.93035148,175.63,175.58,45.23655148]
[1729778575481,0.12549,175.6,175.55,45.23655148]
[1729778576574,45.36204148,175.6,175.55,45.23655148]
[1729778577062,0.25098,175.57,175.52,45.23655148]
[1729778577277,0.25098,175.57,175.53,45.23655148]
[1729778577591,0.12549,175.56,175.51,45.23655148]
[1729778577883,0.12549,175.56,175.53,45.23655148]
[1729778578089,0.12549,175.56,175.51,45.23655148]
[1729778578673,0.12549,175.53,175.49,45.23655148]
[1729778578876,0.12549,175.53,175.5,45.23655148]
[1729778579377,0.25098,175.55,175.51,45.23655148]
[1729778579588,0.37647,175.56,175.52,45.23655148]
[1729778579773,0.25098,175.57,175.53,45.23655148]
[1729778580377,0.25098,175.57,175.56,45.23655148]
[1729778580578,24.153354,175.56,175.5,45.23655148]
[1729778580878,0.37647,175.56,175.48,20.0]
[1729778581066,0.37647,175.56,175.51,45.23655148]
[1729778581480,0.37647,175.56,175.52,45.23655148]
[1729778581675,0.37647,175.56,175.53,45.23655148]
[1729778582494,22.61827574,175.62,175.55,45.23655148]
[1729778582693,45.23655148,175.62,175.57,45.23655148]
[1729778582900,45.36204148,175.61,175.56,45.23655148]
[1729778583194,45.23655148,175.6,175.54,45.23655148]
[1729778583496,14.3313,175.67,175.54,45.23655148]
[1729778583497,45.23655148,175.59,175.54,45.23655148]